bitfinex-derivatives/quotes_SOLF0:USTF0_20250816
["timestamp","ask_amount","ask_price","bid_price","bid_amount"]
[1755340560902,136.93,186.43,186.42,0.03630942]
[1755340561099,140.83747062,186.43,186.42,0.03630942]
[1755340561705,136.93,186.43,186.42,0.03630942]
[1755340562105,140.84018067,186.43,186.42,0.03630942]
[1755340563008,136.93,186.43,186.42,2.96630942]
[1755340564110,140.8419645,186.43,186.42,0.03630942]
[1755340566220,140.8419645,186.43,186.42,2.96630942]
[1755340566810,137.7119645,186.43,186.42,2.96630942]
[1755340567214,140.8419645,186.43,186.42,0.03630942]
[1755340567416,140.8419645,186.43,186.42,2.96630942]
[1755340568212,140.84810795,186.43,186.42,2.96630942]
[1755340570518,137.71810795,186.43,186.42,2.96630942]
[1755340571218,3.91810795,186.43,186.42,2.96630942]
[1755340571424,140.80810795,186.43,186.42,2.96630942]
[1755340576728,145.25374291,186.43,186.42,0.03630942]
[1755340577229,145.25374291,186.43,186.4,2.93]
[1755340577420,3.13,186.41,186.35,2.93]
[1755340577624,137.63810795,186.4,186.35,2.93]
[1755340577822,3.91810795,186.39,186.35,2.93]
[1755340578031,3.91810795,186.38,186.35,2.93]
[1755340578231,133.72,186.4,186.35,2.93]
[1755340578427,3.94503736,186.39,186.35,2.93]
[1755340578620,0.03392655,186.38,186.36,3.07]
[1755340579226,0.03392655,186.38,186.35,3.07]
[1755340579932,3.9466082,186.37,186.35,3.07]
[1755340580128,3.94813907,186.36,186.32,3.07]
[1755340580337,2.86,186.37,186.32,3.07]
[1755340580528,6.80797256,186.36,186.32,3.07]
[1755340580723,3.94797256,186.35,186.32,3.07]
[1755340580924,2.89406339,186.36,186.32,3.07]
[1755340581128,0.03406339,186.36,186.32,3.07]
[1755340581534,0.03406339,186.36,186.32,8.4332]
[1755340581734,0.03406339,186.36,186.33,3.07]
[1755340590441,0.03406339,186.36,186.34,3.07]
[1755340591745,2.89406339,186.36,186.34,3.07]
[1755340592446,0.03406339,186.36,186.31,8.27159624]
[1755340592643,2.86,186.35,186.32,3.07]
[1755340593144,0.03406339,186.36,186.32,8.4333]
[1755340593344,0.03406339,186.36,186.32,5.3633]
[1755340593644,2.89406339,186.36,186.33,3.07]
[1755340594848,2.89406339,186.36,186.32,3.07]
[1755340595738,0.03406339,186.36,186.32,3.07]
[1755340595940,3.96671628,186.35,186.3,2.90799624]
[1755340596249,2.86,186.33,186.31,3.07]
[1755340596841,2.86,186.35,186.27,2.90799624]
[1755340597042,2.86,186.33,186.3,3.07]
[1755340597247,2.86,186.31,186.3,3.07]
[1755340598048,2.86,186.3,186.24,3.07]
[1755340598255,2.86,186.28,186.24,3.07]
[1755340598650,2.86,186.28,186.25,3.07]
[1755340599048,2.89465594,186.28,186.25,3.07]
[1755340601463,2.89465594,186.28,186.21,3.07]
[1755340601953,2.86,186.26,186.21,3.07]
[1755340602155,3.9694458,186.25,186.19,3.07]
[1755340602355,3.96833589,186.24,186.19,3.07]
[1755340602560,2.86,186.27,186.19,3.07]
[1755340602857,0.03692576,186.23,186.19,3.07]
[1755340603059,0.03692576,186.23,186.17,3.07]
[1755340603060,2.86,186.22,186.17,3.07]
[1755340606053,2.86,186.22,186.15,3.07]
[1755340606763,0.03485019,186.2,186.15,3.07]
[1755340606963,2.86,186.18,186.15,3.07]
[1755340607666,2.86,186.19,186.13,3.07]
[1755340608765,0.03485019,186.2,186.16,3.11]
[1755340608969,2.93485019,186.2,186.16,3.11]
[1755340610467,2.9,186.19,186.16,3.11]
[1755340613372,2.9,186.19,186.15,2.90799624]
[1755340613571,2.9,186.19,186.16,3.11]
[1755340615175,2.9,186.18,186.16,3.11]
[1755340615865,2.9,186.19,186.16,3.11]
[1755340617171,2.9,186.18,186.16,3.11]
[1755340618775,2.9,186.19,186.16,3.11]
[1755340618976,2.9,186.19,186.17,3.11]
[1755340619274,2.9,186.19,186.16,3.11]
[1755340619677,0.03485019,186.2,186.16,3.11]
[1755340619976,2.9,186.18,186.17,3.11]
[1755340620270,2.9,186.18,186.16,3.11]
[1755340620469,2.9,186.18,186.12,2.90799624]
[1755340620664,0.03485019,186.2,186.13,3.11]
[1755340620871,2.9,186.19,186.13,3.11]
[1755340621576,0.0338651,186.18,186.13,3.11]
[1755340621776,2.9338651,186.18,186.13,3.11]
[1755340622469,2.9338651,186.18,186.16,3.11]
[1755340622669,0.0338651,186.18,186.16,3.11]
[1755340623069,2.9,186.23,186.16,3.11]
[1755340623268,2.9,186.23,186.18,2.90799624]
[1755340623476,2.9,186.28,186.19,3.11]
[1755340623677,2.9,186.26,186.19,3.11]
[1755340624074,2.9,186.25,186.22,3.11]
[1755340625176,2.9,186.24,186.22,3.11]
[1755340625377,2.9,186.23,186.21,2.94359282]
[1755340625576,2.9,186.31,186.21,2.90799624]
[1755340625776,2.9,186.29,186.21,2.90799624]
[1755340625971,2.9,186.29,186.22,3.11]
[1755340626276,7.35124204,186.35,186.25,3.11]
[1755340626478,2.9,186.28,186.25,3.11]
[1755340626680,2.9,186.28,186.24,2.90799624]
[1755340626975,2.9,186.28,186.26,3.11]
[1755340627180,2.9,186.27,186.26,3.11]
[1755340628574,2.90799624,186.35,186.26,3.11]
[1755340628575,2.9,186.3,186.26,3.11]
[1755340628982,2.9,186.29,186.26,3.11]
[1755340629282,2.9,186.28,186.26,3.14476106]
[1755340630075,2.9,186.28,186.26,0.03476106]
[1755340630280,2.9,186.28,186.27,3.11]
[1755340631678,2.9,186.28,186.26,0.03476106]
[1755340631878,2.9,186.26,186.19,3.11]
[1755340632076,3.95699857,186.25,186.17,3.11]
[1755340632280,2.9,186.23,186.17,3.11]
[1755340633270,2.9,186.21,186.17,3.11]
[1755340633478,2.9,186.2,186.17,3.11]
[1755340633680,2.9,186.19,186.18,3.11]
[1755340636184,2.9,186.19,186.16,3.11]
[1755340636383,2.9,186.19,186.17,3.11]
[1755340636883,2.9,186.18,186.17,3.11]
[1755340637986,2.9,186.18,186.12,6.01799624]
[1755340638183,2.9,186.18,186.13,3.11]
[1755340638684,0.03399716,186.17,186.14,2.98]
[1755340638980,2.91,186.15,186.14,2.98]
[1755340639384,0.03399716,186.17,186.13,2.98]
[1755340640282,0.03399716,186.17,186.16,2.98]
[1755340640683,4.4432458,186.25,186.16,2.98]
[1755340640884,2.91,186.22,186.16,2.98]
[1755340641284,3.9696068,186.21,186.16,2.98]
[1755340641484,2.94508639,186.21,186.16,2.98]
[1755340642184,2.91,186.2,186.16,2.98]
[1755340642596,2.91,186.19,186.16,2.98]
[1755340643392,2.94508639,186.21,186.16,2.98]
[1755340643994,2.91,186.2,186.16,2.98]
[1755340644800,2.91,186.2,186.13,2.98]
[1755340644801,3.97286192,186.19,186.13,2.98]
[1755340644994,3.97286192,186.18,186.13,2.98]
[1755340645196,2.91,186.17,186.13,2.98]
[1755340645502,2.94543381,186.17,186.13,2.98]
[1755340646593,2.94543381,186.17,186.13,5.3688]
[1755340646898,2.94543381,186.17,186.14,2.98]
[1755340647894,0.03543381,186.17,186.14,2.98]
[1755340648197,0.03543381,186.17,186.16,2.98]
[1755340648595,4.4432458,186.24,186.16,2.98]
[1755340648897,2.94531257,186.18,186.17,2.98]
[1755340649198,2.91,186.18,186.17,2.98]
[1755340649695,0.03581406,186.19,186.17,2.98]
[1755340650095,2.94581406,186.19,186.15,2.90799624]
[1755340650296,2.94581406,186.19,186.18,2.98]
[1755340651096,0.03581406,186.19,186.18,2.98]
[1755340651298,0.03581406,186.19,186.18,5.88799624]
[1755340651599,2.91,186.25,186.2,2.98]
[1755340651900,2.91,186.25,186.22,2.98]
[1755340652096,4.4432458,186.31,186.22,2.98]
[1755340652301,2.91,186.29,186.22,2.98]
[1755340652506,2.91,186.27,186.22,8.3463]
[1755340652801,2.91,186.26,186.23,2.98]
[1755340653493,2.91,186.3,186.23,2.98]
[1755340653801,2.91,186.28,186.22,2.98]
[1755340654101,2.91,186.26,186.22,2.98]
[1755340654301,2.91,186.25,186.22,2.98]
[1755340654500,2.91,186.25,186.23,0.03426851]
[1755340654695,2.91,186.25,186.24,2.98]
[1755340655294,2.91,186.27,186.24,2.98]
[1755340655902,2.91,186.27,186.24,5.88799624]
[1755340656100,2.91,186.29,186.25,2.98]
[1755340656493,2.91,186.28,186.25,5.3654]
[1755340656695,2.91,186.28,186.27,2.98]
[1755340657796,2.91,186.28,186.25,0.03386661]
[1755340658000,3.97155788,186.27,186.25,0.03386661]
[1755340658201,6.88155788,186.26,186.25,0.03386661]
[1755340659799,2.91,186.26,186.25,0.03386661]
[1755340660196,2.91,186.26,186.25,3.01386661]
[1755340660700,2.91,186.31,186.25,3.01386661]
[1755340660903,3.9728159,186.3,186.25,0.03386661]
[1755340661104,6.8828159,186.29,186.25,0.03386661]
[1755340661304,2.91,186.27,186.25,0.03386661]
[1755340661501,2.91,186.26,186.25,3.01386661]
[1755340662001,2.91,186.26,186.25,0.03386661]
[1755340662404,2.91,186.26,186.25,3.01386661]
[1755340663706,2.91,186.28,186.25,3.01386661]
[1755340664210,2.91,186.27,186.25,3.01386661]
[1755340664403,2.91,186.27,186.26,2.98]
[1755340665011,2.91,186.26,186.25,3.01386661]
[1755340665707,2.91,186.32,186.25,3.01386661]
[1755340665899,2.91,186.3,186.26,2.98]
[1755340666098,2.91,186.28,186.26,2.98]
[1755340666502,2.91,186.28,186.25,0.03386661]
[1755340666809,2.91,186.28,186.25,3.01386661]
[1755340667810,3.97718633,186.27,186.25,0.03386661]
[1755340668009,6.88718633,186.26,186.25,0.03386661]
[1755340673809,6.88718633,186.26,186.25,2.99386661]
[1755340674203,6.88718633,186.26,186.25,0.03386661]
[1755340676906,6.88718633,186.26,186.25,2.99386661]
[1755340677214,6.88718633,186.26,186.25,0.03386661]
[1755340677815,6.88718633,186.26,186.25,2.99386661]
[1755340680711,6.88718633,186.26,186.25,0.03386661]
[1755340682319,6.88718633,186.26,186.25,2.99386661]
[1755340684017,7.05718633,186.26,186.25,2.99386661]
[1755340684221,3.97718633,186.26,186.25,2.99386661]
[1755340684619,0.03431722,186.27,186.25,2.99386661]
[1755340685117,3.08,186.26,186.25,0.03386661]
[1755340685322,7.06394019,186.26,186.25,0.03386661]
[1755340688022,7.06394019,186.26,186.14,2.96]
[1755340688023,3.08,186.25,186.14,2.96]
[1755340688224,3.08,186.23,186.14,2.96]
[1755340688426,3.08,186.21,186.14,2.96]
[1755340688620,3.08,186.19,186.14,2.96]
[1755340688820,3.08,186.17,186.15,2.96]
[1755340689021,3.08,186.2,186.16,2.96]
[1755340689224,0.03741201,186.18,186.11,2.96]
[1755340689522,0.03741201,186.18,186.14,2.96]
[1755340689927,4.47680251,186.23,186.14,2.96]
[1755340690223,0.03519606,186.18,186.17,2.96]
[1755340690727,82.48330423,186.96,186.17,3.54110374]
[1755340690728,7.55618168,186.29,186.17,3.54110374]
[1755340690926,3.97006561,186.28,186.23,2.90799624]
[1755340691124,3.97006561,186.27,186.24,2.96]
[1755340691315,3.97006561,186.26,186.24,2.96]
[1755340691624,3.08,186.29,186.24,2.96]
[1755340691824,3.97086437,186.28,186.24,2.96]
[1755340692127,3.97086437,186.27,186.24,2.96]
[1755340692325,3.08,186.31,186.23,2.94273534]
[1755340692326,3.08,186.31,186.27,2.96]
[1755340692515,3.97250089,186.3,186.27,2.96]
[1755340692714,3.08,186.33,186.27,2.96]
[1755340692920,3.97286469,186.32,186.28,2.96]
[1755340693119,3.97286469,186.31,186.28,2.96]
[1755340693321,3.08,186.33,186.28,2.96]
[1755340693521,3.97242617,186.32,186.28,2.96]
[1755340693715,3.97242617,186.31,186.28,2.96]
[1755340693924,3.08,186.33,186.28,2.96]
[1755340694115,3.97359846,186.32,186.28,2.96]
[1755340694320,3.97359846,186.31,186.28,2.96]
[1755340694525,3.08,186.33,186.28,2.96]
[1755340694824,3.97420719,186.32,186.28,2.96]
[1755340695025,3.97420719,186.31,186.28,2.96]
[1755340695215,3.08,186.33,186.28,2.96]
[1755340695419,3.97465296,186.32,186.29,5.86799624]
[1755340695614,123.45825033,186.35,186.3,2.96]
[1755340695821,3.9740583,186.34,186.32,2.90799624]
[1755340696026,2.90799624,186.44,186.27,0.03779931]
[1755340696027,3.08,186.36,186.27,0.03779931]
[1755340696225,3.08,186.34,186.27,2.96]
[1755340696426,3.08,186.32,186.27,2.96]
[1755340696620,3.97454938,186.31,186.3,3.00037222]
[1755340696920,3.97454938,186.31,186.3,0.04037222]
[1755340696921,3.97425079,186.31,186.3,0.04037222]
[1755340697127,3.97425079,186.31,186.28,2.96]
[1755340697326,3.08,186.28,186.24,2.96]
[1755340698022,3.08,186.28,186.24,2.99856409]
[1755340699626,3.05,186.3,186.24,2.99856409]
[1755340700527,3.05,186.33,186.27,3.15]
[1755340700724,7.02033268,186.32,186.27,3.15]
[1755340701026,3.9705249,186.31,186.27,3.15]
[1755340701226,3.05,186.32,186.28,0.03462216]
[1755340701428,3.05,186.34,186.29,2.90799624]
[1755340701623,3.96957017,186.33,186.29,2.90799624]
[1755340701827,3.96957017,186.32,186.29,3.15]
[1755340702027,3.05,186.3,186.29,3.15]
[1755340702424,3.05,186.35,186.29,3.15]
[1755340702631,3.05,186.33,186.29,3.15]
[1755340703225,3.05,186.32,186.29,3.15]
[1755340703629,4.47618168,186.37,186.29,3.15]
[1755340703630,3.05,186.34,186.29,3.15]
[1755340703925,3.05,186.31,186.3,3.15]
[1755340704228,3.05,186.35,186.28,3.15]
[1755340704429,3.05,186.33,186.27,3.15]
[1755340704623,3.05,186.31,186.29,0.03407219]
[1755340704831,3.05,186.31,186.3,3.15]
[1755340706534,4.47618168,186.36,186.29,0.03407219]
[1755340706535,3.05,186.35,186.29,0.03407219]
[1755340706727,3.05,186.33,186.29,0.03407219]
[1755340706931,7.38417792,186.37,186.31,3.15]
[1755340707132,3.96255727,186.36,186.31,3.15]
[1755340707328,3.05,186.34,186.31,3.15]
[1755340707534,3.05,186.32,186.31,3.15]
[1755340707836,7.01255727,186.32,186.31,3.15]
[1755340708635,3.05,186.32,186.31,3.15]
[1755340709037,7.01147629,186.32,186.31,3.15]
[1755340709330,7.01147629,186.32,186.29,0.03407219]
[1755340709531,3.05,186.31,186.3,3.15]
[1755340710934,3.05,186.31,186.29,0.03407219]
[1755340711326,3.05,186.36,186.29,3.18407219]
[1755340711532,7.00890042,186.35,186.29,3.18407219]
[1755340711733,3.95890042,186.34,186.29,3.18407219]
[1755340712035,7.00890042,186.33,186.29,3.18407219]
[1755340712334,3.05,186.33,186.29,3.18407219]
[1755340712934,3.05,186.32,186.29,3.18407219]
[1755340714534,3.05,186.32,186.29,0.03407219]
[1755340714929,3.05,186.3,186.29,0.03407219]
[1755340715133,7.00983222,186.3,186.29,0.03407219]
[1755340720142,7.00983222,186.3,186.29,3.18407219]
[1755340721444,7.00983222,186.3,186.29,0.03407219]
[1755340722141,3.95983222,186.3,186.23,3.15]
[1755340722342,3.05,186.28,186.23,3.15]
[1755340722545,3.95869337,186.27,186.23,3.15]
[1755340722745,3.05,186.25,186.23,3.15]
[1755340722945,3.05,186.25,186.24,3.15]
[1755340723337,3.05,186.25,186.2,3.15]
[1755340724848,3.05,186.24,186.2,3.15]
[1755340725549,3.0857602,186.26,186.2,3.15]
[1755340725745,3.05,186.25,186.2,3.15]
[1755340726446,3.05,186.24,186.2,3.15]
[1755340726843,3.0857602,186.26,186.2,3.15]
[1755340727346,0.0357602,186.26,186.22,3.15]
[1755340727846,3.05,186.25,186.22,3.15]
[1755340728548,3.05,186.25,186.2,2.90799624]
[1755340728549,2.89,186.25,186.21,3.15]
[1755340728751,0.0357602,186.26,186.21,3.15]
[1755340728952,2.89,186.24,186.21,3.15]
[1755340729148,0.0357602,186.26,186.21,3.15]
[1755340729349,3.95737896,186.25,186.2,2.85]
[1755340729544,2.89,186.24,186.2,2.85]
[1755340729741,2.89,186.23,186.2,2.85]
[1755340730650,2.89,186.22,186.21,2.85]
[1755340731653,2.89,186.24,186.21,2.85]
[1755340731847,2.89,186.23,186.22,2.85]
[1755340733155,2.89,186.24,186.22,2.85]
[1755340733355,2.89,186.24,186.2,2.85]
[1755340735553,0.0357602,186.26,186.2,2.85]
[1755340735761,2.89,186.23,186.2,2.85]
[1755340736060,2.89,186.25,186.2,2.85]
[1755340736259,2.89,186.25,186.18,2.85]
[1755340740259,3.96112229,186.24,186.18,2.85]
[1755340740459,2.89,186.25,186.18,2.85]
[1755340740460,2.89,186.23,186.18,2.85]
[1755340740861,2.89,186.25,186.18,2.85]
[1755340741065,0.0357602,186.26,186.18,2.85]
[1755340741066,2.89,186.23,186.18,2.85]
[1755340741457,0.0357602,186.26,186.18,2.85]
[1755340741661,0.0357602,186.26,186.23,2.90799624]
[1755340741965,0.0357602,186.26,186.24,2.85]
[1755340742164,2.9257602,186.26,186.25,2.85]
[1755340742359,0.0357602,186.26,186.25,2.85]
[1755340744964,2.9257602,186.26,186.25,2.85]
[1755340745166,0.0357602,186.26,186.25,2.85]
[1755340746763,2.9257602,186.26,186.2,2.90799624]
[1755340747063,2.9257602,186.26,186.18,2.85]
[1755340747064,2.89,186.24,186.18,2.85]
[1755340747262,3.958764,186.23,186.18,2.85]
[1755340747469,7.38417792,186.28,186.18,2.85]
[1755340747659,8.43523019,186.27,186.15,2.90799624]
[1755340747862,2.89,186.2,186.19,2.85]
[1755340748467,2.89,186.21,186.13,2.85]
[1755340749269,2.92726506,186.19,186.13,2.85]
[1755340751569,0.03726506,186.19,186.13,2.85]
[1755340752264,2.92726506,186.19,186.13,2.85]
[1755340756667,2.92726506,186.19,186.12,2.90799624]
[1755340756866,2.92726506,186.19,186.13,2.85]
[1755340757673,0.03726506,186.19,186.13,2.85]
[1755340759075,2.97726506,186.19,186.13,2.85]
[1755340760581,2.97726506,186.19,186.13,8.2189]
[1755340760876,2.97726506,186.19,186.14,3.05]
[1755340761073,0.03726506,186.19,186.16,3.05]
[1755340761281,0.03726506,186.19,186.18,5.95799624]
[1755340761869,2.97726506,186.19,186.18,3.05]
[1755340762071,0.03726506,186.19,186.18,3.05]
[1755340766274,2.94,186.24,186.19,3.05]
[1755340766475,4.47618168,186.29,186.22,3.05]
[1755340766675,2.94,186.27,186.22,3.05]
[1755340766875,6.91025596,186.26,186.22,3.05]
[1755340767076,2.94,186.3,186.24,2.90799624]
[1755340767277,2.94,186.28,186.25,3.05]
[1755340767571,2.94,186.26,186.25,0.03552623]
[1755340768477,2.94,186.26,186.25,3.08552623]
[1755340768681,4.47618168,186.32,186.25,3.08552623]
[1755340768877,2.94,186.3,186.25,3.08552623]
[1755340769083,2.94,186.27,186.25,0.03552623]
[1755340769283,2.94,186.27,186.26,3.05]
[1755340769880,2.94,186.27,186.25,0.03552623]
[1755340770684,2.94,186.27,186.25,3.08552623]
[1755340771177,2.94,186.26,186.25,3.08552623]
[1755340774185,2.94,186.31,186.25,3.08552623]
[1755340774386,6.90309245,186.3,186.25,3.08552623]
[1755340774683,6.90309245,186.29,186.25,3.08552623]
[1755340774884,2.94,186.29,186.25,3.08552623]
[1755340776286,2.94,186.32,186.25,3.08552623]
[1755340776481,4.47618168,186.36,186.27,2.90799624]
[1755340776685,2.94,186.31,186.28,3.05]
[1755340777086,2.94,186.3,186.28,3.05]
[1755340777392,4.47618168,186.36,186.28,0.03734657]
[1755340777588,6.90461005,186.35,186.28,0.03734657]
[1755340777884,2.94,186.33,186.28,0.03734657]
[1755340778085,3.96461005,186.34,186.28,0.03734657]
[1755340778086,2.94,186.31,186.28,0.03734657]
[1755340778286,2.94,186.29,186.28,0.03734657]
[1755340781087,2.94,186.29,186.28,3.08734657]
[1755340782686,2.94,186.29,186.28,0.03734657]
[1755340783786,6.90172702,186.29,186.28,0.03734657]
[1755340790603,6.90172702,186.29,186.28,3.15734657]
[1755340793292,6.90172702,186.29,186.28,0.03734657]
[1755340796703,6.90172702,186.29,186.28,3.15734657]
[1755340799002,3.96172702,186.29,186.28,3.15734657]
[1755340799396,3.09,186.33,186.28,3.15734657]
[1755340799602,7.05307417,186.32,186.28,3.15734657]
[1755340799801,3.09,186.3,186.28,3.15734657]
[1755340799998,7.05259647,186.29,186.28,0.03734657]
[1755340800700,7.05259647,186.29,186.22,3.12]
[1755340800905,4.47618168,186.3,186.22,3.12]
[1755340800906,3.09,186.27,186.22,3.12]
[1755340801106,3.09,186.25,186.22,3.12]
[1755340801300,3.09,186.25,186.17,2.90799624]
[1755340801500,3.09,186.25,186.23,3.12]
[1755340801706,3.09,186.25,186.18,3.12]
[1755340802503,3.09,186.25,186.12,44.0]
[1755340802504,0.03742302,186.23,186.19,2.90799624]
[1755340802700,5.85945774,186.33,186.22,6.02799624]
[1755340802701,3.09,186.29,186.22,6.02799624]
[1755340802900,3.09,186.29,186.23,3.12]
[1755340804110,3.09,186.28,186.25,3.12]
[1755340805005,3.09,186.32,186.25,3.12]
[1755340805207,3.96413557,186.31,186.25,3.12]
[1755340805402,7.05413557,186.3,186.25,3.12]
[1755340805610,3.96413557,186.29,186.25,6.02799624]
[1755340805811,3.09,186.32,186.26,3.12]
[1755340806008,3.96631581,186.31,186.26,8.4851]
[1755340806310,3.09,186.32,186.27,3.12]
[1755340806508,3.96681899,186.31,186.27,3.12]
[1755340806708,3.09,186.32,186.27,3.12]
[1755340806912,7.04786812,186.31,186.27,3.12]
[1755340807111,3.09,186.31,186.27,3.12]
[1755340807314,3.95913212,186.3,186.27,3.12]
[1755340807514,3.09,186.31,186.27,3.12]
[1755340807809,3.95883454,186.3,186.27,3.15852064]
[1755340808010,3.09,186.33,186.27,3.15852064]
[1755340808213,3.95968117,186.32,186.27,3.15852064]
[1755340808515,7.04968117,186.31,186.27,3.15852064]
[1755340808719,3.95968117,186.3,186.27,3.15852064]
[1755340809011,7.04968117,186.29,186.27,0.03852064]
[1755340809317,7.05208607,186.28,186.27,0.03852064]
[1755340809816,7.05208607,186.28,186.27,3.15852064]
[1755340810308,7.05208607,186.28,186.27,0.03852064]
[1755340811215,7.05208607,186.28,186.27,3.15852064]
[1755340812418,3.96208607,186.28,186.27,3.15852064]
[1755340812712,3.09,186.32,186.27,3.15852064]
[1755340812914,7.05440642,186.31,186.27,3.15852064]
[1755340813115,3.96440642,186.3,186.27,3.15852064]
[1755340813312,3.96440642,186.29,186.27,3.15852064]
[1755340813518,4.47618168,186.33,186.27,0.03852064]
[1755340813711,3.09,186.31,186.28,3.12]
[1755340813916,3.09,186.29,186.28,3.12]
[1755340814116,7.05401908,186.29,186.28,3.12]
[1755340814414,3.09,186.28,186.27,3.15852064]
[1755340814619,3.96401908,186.28,186.27,3.15852064]
[1755340814814,3.96401908,186.28,186.27,0.03852064]
[1755340815015,7.05401908,186.28,186.27,3.15852064]
[1755340815524,7.05401908,186.28,186.27,0.03852064]
[1755340818115,11.53020076,186.28,186.27,0.03852064]
[1755340818318,7.05401908,186.28,186.27,0.03852064]
[1755340822722,11.53020076,186.28,186.27,0.03852064]
[1755340823826,6.87201532,186.28,186.22,3.12]
[1755340824027,2.99,186.26,186.23,3.12]
[1755340824224,2.99,186.24,186.23,3.12]
[1755340824427,6.95401908,186.24,186.23,3.12]
[1755340824625,6.95401908,186.24,186.21,3.12]
[1755340824826,6.95401908,186.23,186.22,3.12]
[1755340827023,3.96401908,186.23,186.19,3.12]
[1755340827229,2.99,186.21,186.19,3.12]
[1755340827831,0.03467183,186.24,186.19,3.12]
[1755340828029,6.95505628,186.23,186.19,3.12]
[1755340828326,3.96505628,186.22,186.19,3.12]
[1755340829331,3.96505628,186.22,186.14,8.27639624]
[1755340829520,2.99,186.22,186.15,3.12]
[1755340829926,3.96369579,186.21,186.15,3.12]
[1755340830224,4.485197,186.25,186.1,537.5]
[1755340830225,2.99,186.19,186.11,2.90799624]
[1755340830419,2.99,186.19,186.16,3.12]
[1755340830729,2.99,186.19,186.12,3.12]
[1755340831326,3.9790239,186.18,186.12,3.12]
[1755340831526,2.99,186.19,186.12,3.12]
[1755340831723,2.99,186.17,186.12,3.12]
[1755340831924,2.99,186.16,186.12,3.12]
[1755340832123,2.99,186.15,186.12,3.12]
[1755340832321,7.39319324,186.22,186.12,3.12]
[1755340832322,2.99,186.19,186.12,3.12]
[1755340832523,2.99,186.17,186.12,3.12]
[1755340832725,2.90799624,186.19,186.12,3.12]
[1755340832726,3.97748227,186.16,186.12,3.12]
[1755340833031,2.99,186.15,186.07,3.12]
[1755340833624,2.99,186.15,186.08,3.12]
[1755340833825,0.03480784,186.16,186.09,2.90799624]
[1755340834021,0.03480784,186.16,186.1,3.12]
[1755340834333,2.99,186.18,186.12,6.02799624]
[1755340834625,0.03496478,186.15,186.13,3.12]
[1755340834925,0.03496478,186.15,186.14,3.12]
[1755340835131,2.99,186.21,186.14,3.12]
[1755340835330,0.03666312,186.16,186.14,3.12]
[1755340836621,0.03666312,186.16,186.15,2.90799624]
[1755340836822,0.03666312,186.16,186.15,6.02799624]
[1755340838325,0.03666312,186.16,186.14,2.90799624]
[1755340838709,2.99,186.15,186.11,3.12]
[1755340839126,0.03666312,186.16,186.11,3.12]
[1755340839330,0.03666312,186.16,186.12,3.12]
[1755340839534,2.99,186.15,186.12,3.12]
[1755340839735,2.99,186.14,186.12,3.12]
[1755340839933,2.99,186.14,186.07,8.27849624]
[1755340839934,2.99,186.14,186.08,3.12]
[1755340841334,2.99,186.14,186.08,8.4904]
[1755340841536,0.03833323,186.15,186.11,3.12]
[1755340841938,2.99,186.15,186.11,3.12]
[1755340842237,2.99,186.13,186.11,3.12]
[1755340843238,2.99,186.14,186.11,3.12]
[1755340843941,0.03876716,186.15,186.11,3.12]
[1755340844134,2.99,186.14,186.09,3.12]